bitfinex/quotes_SOLUSD_20260203
["timestamp","ask_amount","ask_price","bid_price","bid_amount"]
[1770110861476,2.3099386,102.67,102.64,2.38702749]
[1770110862365,5.22870027,102.67,102.63,5.30578916]
[1770110862566,5.22870027,102.67,102.63,2.38702749]
[1770110862567,2.3099386,102.66,102.63,2.38702749]
[1770110862868,2.3099386,102.66,102.62,42.11001748]
[1770110862869,12.0513632,102.66,102.62,42.11001748]
[1770110863067,12.0513632,102.66,102.63,2.38702749]
[1770110863377,12.0513632,102.66,102.62,15.05001748]
[1770110863581,12.0513632,102.66,102.63,2.38702749]
[1770110864879,26.66013299,102.67,102.64,2.38702749]
[1770110865384,2.3099386,102.67,102.64,5.30578916]
[1770110866879,12.05039005,102.67,102.64,5.30578916]
[1770110867083,9.74045145,102.67,102.64,5.30578916]
[1770110867669,12.05039005,102.67,102.64,2.38702749]
[1770110867986,9.74045145,102.67,102.65,2.38702749]
[1770110868358,12.05039005,102.67,102.64,5.30578916]
[1770110869291,9.74045145,102.67,102.65,2.38702749]
[1770110869478,9.73927365,102.68,102.66,2.38702749]
[1770110869679,12.04841042,102.69,102.66,5.30578916]
[1770110874095,12.04841042,102.69,102.66,2.38702749]
[1770110874468,12.04841042,102.69,102.66,5.30578916]
[1770110874676,9.73847182,102.69,102.66,5.30578916]
[1770110875277,12.16356883,102.69,102.66,5.30578916]
[1770110875493,2.42509701,102.71,102.68,2.52096697]
[1770110875680,12.15935185,102.73,102.69,5.43972864]
[1770110875874,2.42509701,102.73,102.7,2.52096697]
[1770110876075,2.91876167,102.76,102.72,5.43972864]
[1770110876076,2.42509701,102.76,102.72,5.43972864]
[1770110876279,2.42509701,102.76,102.73,5.43972864]
[1770110876481,12.15702563,102.76,102.73,5.43972864]
[1770110877097,39.4043198,102.76,102.72,5.43972864]
[1770110877294,36.48555813,102.76,102.72,5.43972864]
[1770110877899,36.48555813,102.76,102.73,2.52096697]
[1770110881295,2.42509701,102.75,102.71,2.52096697]
[1770110881495,2.42509701,102.75,102.71,5.43972864]
[1770110881694,2.42509701,102.75,102.72,2.52096697]
[1770110882496,36.48555813,102.76,102.72,5.43972864]
[1770110882698,2.42509701,102.75,102.72,2.52096697]
[1770110883092,39.4043198,102.76,102.72,2.91876167]
[1770110883404,2.42509701,102.75,102.72,5.43972864]
[1770110885791,12.15819609,102.75,102.72,5.43972864]
[1770110886194,2.42509701,102.73,102.7,2.91876167]
[1770110886387,2.42509701,102.71,102.68,5.43972864]
[1770110886588,2.42509701,102.71,102.67,15.17919195]
[1770110886782,2.42509701,102.71,102.68,12.65772269]
[1770110886995,2.42509701,102.72,102.69,5.43972864]
[1770110887303,2.42509701,102.72,102.68,15.17868966]
[1770110888107,2.42509701,102.71,102.68,12.25992799]
[1770110888284,2.42509701,102.71,102.68,15.17868966]
[1770110888485,12.16122686,102.72,102.69,5.43972864]
[1770110888704,12.16122686,102.72,102.68,9.73896102]
[1770110888705,9.73461227,102.73,102.71,2.52096697]
[1770110888997,9.73461227,102.73,102.7,2.91876167]
[1770110889198,15.07847095,102.73,102.69,5.43972864]
[1770110889387,2.42509701,102.72,102.69,2.52096697]
[1770110890202,12.16084728,102.72,102.69,2.52096697]
[1770110890716,12.15974662,102.73,102.7,2.52096697]
[1770110890888,12.15974662,102.73,102.7,5.43972864]
[1770110891713,9.73464961,102.73,102.7,5.43972864]
[1770110891914,12.15974662,102.73,102.7,5.43972864]
[1770110892781,2.42509701,102.75,102.71,5.43972864]
[1770110893185,2.42509701,102.73,102.69,15.17729215]
[1770110893800,2.42509701,102.73,102.7,2.52096697]
[1770110894510,12.16000081,102.73,102.7,5.43782704]
[1770110894710,12.16000081,102.73,102.69,15.17539055]
[1770110895291,9.7349038,102.73,102.7,15.17490201]
[1770110895795,12.16000081,102.73,102.7,5.43782704]
[1770110896407,12.16000081,102.73,102.69,15.17536481]
[1770110896796,12.16000081,102.73,102.7,2.91686007]
[1770110896999,12.16000081,102.73,102.69,15.17536481]
[1770110897710,12.16000081,102.73,102.7,5.43782704]
[1770110898408,2.42509701,102.72,102.68,12.25991835]
[1770110898607,2.42509701,102.7,102.67,2.52096697]
[1770110898806,2.42509701,102.72,102.68,2.52096697]
[1770110899001,12.16164523,102.71,102.68,2.52096697]
[1770110899309,12.16164523,102.71,102.68,5.43782704]
[1770110899514,12.16164523,102.71,102.68,2.52096697]
[1770110900011,12.15935185,102.73,102.7,5.43782704]
[1770110900215,12.15935185,102.73,102.7,2.91686007]
[1770110900511,12.15935185,102.73,102.7,5.34856967]
[1770110900810,2.52123912,102.72,102.69,5.34856967]
[1770110900987,12.25549396,102.73,102.69,15.08635645]
[1770110901191,12.25549396,102.73,102.69,5.34856967]
[1770110901392,2.52123912,102.72,102.69,5.34856967]
[1770110901691,2.52123912,102.72,102.69,15.08655618]
[1770110902308,12.25549396,102.73,102.69,15.08655618]
[1770110902509,9.73425484,102.73,102.7,5.34856967]
[1770110902695,12.25549396,102.73,102.7,5.34856967]
[1770110903512,12.25549396,102.73,102.7,2.4317096]
[1770110903921,9.73425484,102.73,102.69,12.16969611]
[1770110904099,2.52123912,102.72,102.69,15.08655618]
[1770110904523,2.52123912,102.71,102.68,9.73871467]
[1770110904721,2.52123912,102.69,102.66,5.34856967]
[1770110904928,2.52123912,102.72,102.68,2.4317096]
[1770110905101,12.25696722,102.72,102.69,2.91686007]
[1770110905301,12.25696722,102.72,102.68,15.08743969]
[1770110905720,2.52123912,102.73,102.69,5.34856967]
[1770110905897,2.52123912,102.73,102.7,5.34856967]
[1770110906399,9.73236009,102.75,102.72,5.34856967]
[1770110906608,9.73236009,102.75,102.72,2.91686007]
[1770110906609,12.25359921,102.75,102.72,2.91686007]
[1770110906801,12.25359921,102.75,102.72,5.34856967]
[1770110907000,9.73236009,102.75,102.72,5.34856967]
[1770110907291,2.52123912,102.74,102.71,2.4317096]
[1770110907495,2.52123912,102.73,102.69,12.16923485]
[1770110907696,2.52123912,102.73,102.69,15.08609492]
[1770110907921,12.25359921,102.75,102.72,2.4317096]
[1770110908296,12.25359921,102.75,102.72,5.34856967]
[1770110908510,12.25359921,102.75,102.72,2.4317096]
[1770110910500,12.25359921,102.75,102.71,2.4317096]
[1770110910701,12.25359921,102.75,102.72,5.34856967]
[1770110910924,12.25359921,102.75,102.73,2.91686007]
[1770110910925,2.52123912,102.75,102.73,2.91686007]
[1770110911720,2.52123912,102.75,102.72,5.34856967]
[1770110912817,2.52123912,102.75,102.73,2.91686007]
[1770110913204,12.25303762,102.76,102.73,2.91686007]
[1770110913411,12.25303762,102.76,102.73,5.34856967]
[1770110914211,2.52123912,102.77,102.74,2.4317096]
[1770110914405,2.52123912,102.77,102.75,2.91686007]
[1770110914714,9.72951936,102.78,102.75,5.34856967]
[1770110914715,2.52123912,102.78,102.75,5.34856967]
[1770110914911,12.45011918,102.79,102.76,2.91686007]
[1770110915324,2.72123912,102.79,102.76,5.34856967]
[1770110915620,2.72123912,102.79,102.77,2.91686007]
[1770110915828,0.2,102.79,102.77,5.34856967]
[1770110916028,9.9269364,102.81,102.78,5.34856967]
[1770110916524,2.72123912,102.81,102.78,5.34856967]
[1770110916920,12.44801346,102.81,102.78,2.91686007]
[1770110917621,12.44801346,102.81,102.77,15.0785666]
[1770110917814,2.52123912,102.8,102.77,12.16170653]
[1770110918126,2.52123912,102.8,102.76,15.07976542]
[1770110918307,5.43809919,102.8,102.76,15.07976542]
[1770110918508,2.52123912,102.8,102.76,15.07976542]
[1770110918906,12.24968843,102.8,102.76,15.07976542]
[1770110919132,15.1665485,102.8,102.76,15.07992798]
[1770110919426,2.91686007,102.79,102.75,12.16396198]
[1770110919613,2.52123912,102.78,102.75,15.08082205]
[1770110920810,12.25044476,102.79,102.75,15.08082205]
[1770110921521,2.52123912,102.79,102.75,15.08082205]
[1770110921721,2.52123912,102.79,102.76,2.91686007]
[1770110921913,12.24931495,102.8,102.77,2.4317096]
[1770110922111,12.24931495,102.8,102.77,5.34856967]
[1770110922721,2.52123912,102.8,102.77,5.34856967]
[1770110922921,2.52123912,102.8,102.77,15.07874094]
[1770110923121,12.44834433,102.81,102.77,15.07874094]
[1770110924035,15.3652044,102.81,102.77,15.07874094]
[1770110924235,2.52123912,102.8,102.77,12.16188087]
[1770110924834,2.52123912,102.8,102.77,15.07874094]
[1770110925816,12.24896981,102.8,102.77,12.16188087]
[1770110926013,2.52123912,102.79,102.75,15.08036226]
[1770110926232,2.52123912,102.79,102.76,12.16255784]
[1770110926419,2.52123912,102.79,102.76,2.4317096]
[1770110927027,12.25046192,102.79,102.75,15.08047577]
[1770110927339,2.52123912,102.78,102.75,9.7319061]
[1770110927540,9.7292228,102.79,102.76,5.34856967]
[1770110929036,29.75716533,102.8,102.76,12.16225537]
[1770110929037,2.52123912,102.8,102.76,12.16225537]
[1770110929229,2.52123912,102.79,102.76,2.4317096]
[1770110929429,5.43809919,102.79,102.75,15.08041243]
[1770110929625,2.52123912,102.78,102.75,15.08041243]
[1770110929831,2.52123912,102.78,102.75,12.16355236]
[1770110930025,2.52123912,102.78,102.75,5.34856967]
[1770110930340,2.42916836,102.79,102.76,5.38711716]
[1770110930541,2.42916836,102.79,102.75,15.11910481]
[1770110931247,12.15848555,102.79,102.75,15.11910481]
[1770110931728,2.42916836,102.78,102.75,2.47025709]
[1770110931931,2.42916836,102.78,102.75,15.11924019]
[1770110932246,5.34602843,102.78,102.75,2.47025709]
[1770110933144,12.15909497,102.78,102.75,2.47025709]
[1770110934131,15.07595504,102.78,102.75,2.47025709]
[1770110934642,12.15909497,102.78,102.75,2.47025709]
[1770110934846,15.07595504,102.78,102.75,2.47025709]
[1770110935552,12.15909497,102.78,102.75,2.47025709]
[1770110935946,15.07595504,102.78,102.75,2.47025709]
[1770110936744,5.29002312,102.77,102.73,2.38580504]
[1770110936944,2.37316305,102.75,102.72,2.38580504]
[1770110937142,5.29002312,102.75,102.71,12.1211606]
[1770110937451,5.29002312,102.75,102.72,2.38580504]
[1770110939151,15.02299702,102.75,102.72,2.38580504]
[1770110940153,12.10613695,102.75,102.72,2.38580504]
[1770110940448,2.37316305,102.75,102.72,2.38580504]
[1770110940656,9.72951936,102.78,102.73,2.38580504]
[1770110940852,2.37316305,102.77,102.74,5.30266511]
[1770110941051,2.37316305,102.78,102.75,5.30266511]
[1770110941355,2.37316305,102.78,102.75,15.03423051]
[1770110941651,2.37316305,102.78,102.75,12.11737044]
[1770110941852,2.37316305,102.78,102.75,15.03423051]
[1770110942455,2.37316305,102.78,102.75,12.11798065]
[1770110942752,12.10208048,102.79,102.75,15.03484072]
[1770110942938,2.37316305,102.78,102.75,15.03484072]
[1770110943655,2.37316305,102.78,102.75,12.11798065]
[1770110944150,12.10278111,102.78,102.75,12.11798065]
[1770110944338,2.37316305,102.78,102.75,9.73217561]
[1770110945555,12.10225937,102.79,102.75,15.03484072]
[1770110945749,2.37316305,102.78,102.75,15.03484072]
[1770110946951,2.37316305,102.78,102.75,12.64903568]
[1770110947162,2.37316305,102.78,102.75,9.73217561]
[1770110947355,2.37316305,102.78,102.75,12.64903568]
[1770110948760,2.37316305,102.78,102.75,15.03484072]
[1770110949753,2.37316305,102.78,102.75,39.36574096]
[1770110949954,2.37316305,102.79,102.76,2.38580504]
[1770110950158,2.37316305,102.79,102.76,5.30266511]
[1770110950338,2.37316305,102.79,102.76,2.91686007]
[1770110950538,2.37316305,102.79,102.75,39.36574096]
[1770110950849,2.37316305,102.79,102.76,5.30266511]
[1770110951255,2.37316305,102.79,102.76,2.38580504]
[1770110951553,2.37316305,102.8,102.77,2.38580504]
[1770110951745,2.37316305,102.79,102.76,15.03325538]
[1770110953360,12.1008233,102.8,102.76,15.03325538]
[1770110953568,2.37316305,102.8,102.76,39.36178788]
[1770110953863,2.37316305,102.8,102.77,15.032411]
[1770110954035,2.37316305,102.8,102.77,9.72974589]
[1770110954455,2.37316305,102.79,102.76,15.03367295]
[1770110954965,12.10086725,102.8,102.77,9.73038968]
[1770110955561,2.37316305,102.8,102.77,9.73038968]
[1770110957862,12.10125536,102.8,102.76,39.35782256]
[1770110958067,2.37316305,102.79,102.76,12.11672212]
[1770110958256,2.37316305,102.79,102.76,15.02948831]
[1770110958570,2.37316305,102.79,102.76,12.11672212]
[1770110959468,1.87316305,102.79,102.76,9.73091708]
[1770110959649,1.87316305,102.79,102.76,12.11672212]
[1770110960368,1.87316305,102.79,102.76,15.02948831]
[1770110962975,2.42213201,102.78,102.76,9.73091708]
[1770110963672,2.42213201,102.78,102.76,12.06980191]
[1770110963972,2.42213201,102.8,102.77,2.33888483]
[1770110964171,2.42213201,102.8,102.77,5.25165102]
[1770110964472,2.42213201,102.8,102.77,2.33888483]
[1770110965984,2.42213201,102.8,102.77,14.98142992]
[1770110966465,2.42213201,102.8,102.77,12.06866373]
[1770110967072,2.42213201,102.8,102.77,14.98142992]
[1770110969076,2.42213201,102.8,102.77,12.06866373]
[1770110970075,12.34928726,102.81,102.78,2.33888483]
[1770110970375,0.2,102.81,102.79,2.33888483]
[1770110971165,2.62213201,102.81,102.79,2.33888483]
[1770110971560,2.42213201,102.8,102.77,12.06866373]
[1770110972568,2.42213201,102.8,102.78,2.33888483]
[1770110973381,2.42213201,102.8,102.77,2.33888483]
[1770110973560,5.3348982,102.8,102.77,2.33888483]
[1770110973962,2.42213201,102.8,102.77,2.33888483]
[1770110974474,9.92716815,102.81,102.78,5.25165102]
[1770110974660,0.2,102.81,102.79,2.33888483]
[1770110974863,2.62213201,102.81,102.79,2.33888483]
[1770110975263,2.62213201,102.81,102.78,5.25165102]
[1770110976573,2.62213201,102.81,102.79,2.33888483]
[1770110976957,0.2,102.81,102.79,5.25165102]
[1770110977158,0.2,102.81,102.79,2.33888483]
[1770110978478,2.62213201,102.81,102.78,14.98064862]
[1770110979882,0.2,102.81,102.79,2.33888483]
[1770110980062,2.62213201,102.81,102.78,14.98064862]
[1770110980259,2.62213201,102.81,102.79,2.33888483]
[1770110980461,2.42213201,102.8,102.76,2.33888483]
[1770110980666,2.42213201,102.8,102.77,2.33888483]
[1770110981373,2.42213201,102.8,102.76,14.98256854]
[1770110982470,9.72857281,102.79,102.76,14.98256854]
[1770110982657,2.42213201,102.8,102.77,2.33888483]
[1770110982861,2.62213201,102.81,102.78,2.33888483]
[1770110983484,2.42213201,102.8,102.77,2.33888483]
[1770110983867,2.42213201,102.8,102.77,5.25165102]
[1770110984579,0.2,102.81,102.79,2.33888483]
[1770110984975,2.62213201,102.81,102.78,2.33888483]
[1770110985188,2.62213201,102.81,102.78,5.25165102]
[1770110987266,2.62213201,102.81,102.78,12.06837972]
[1770110988589,5.5348982,102.81,102.78,12.06837972]
[1770110988788,2.62213201,102.81,102.78,12.06837972]
[1770110989890,2.42213201,102.8,102.77,12.06881448]
[1770110990190,2.42213201,102.8,102.78,9.7295167]
[1770110990893,2.42213201,102.8,102.78,12.17869507]
[1770110993084,2.42213201,102.8,102.78,2.44917837]
[1770110994092,12.14978714,102.8,102.78,2.44917837]
[1770110994390,2.52115086,102.77,102.71,9.73615032]
[1770110994595,9.72951936,102.78,102.71,9.73615032]
[1770110994596,2.52115086,102.75,102.71,9.73615032]
[1770110994787,2.52115086,102.75,102.71,12.64891651]
[1770110994987,2.52115086,102.75,102.72,2.91276619]
[1770110995977,2.52115086,102.75,102.71,12.64891651]
[1770110996278,2.52115086,102.75,102.72,4.71092479]
[1770110996579,2.52115086,102.75,102.72,11.5332167]
[1770111000597,9.73204631,102.76,102.73,1.79602125]
[1770111000798,2.52115086,102.78,102.74,1.79602125]
[1770111000977,9.72762645,102.8,102.72,9.7350581]
[1770111000978,2.91276619,102.76,102.72,9.7350581]
[1770111001180,2.52115086,102.72,102.7,15.18520103]
[1770111001402,2.52115086,102.71,102.7,15.18520103]
[1770111001605,2.52115086,102.71,102.68,36.49798288]
[1770111001901,5.43391705,102.7,102.67,12.25322304]
[1770111002094,15.17109032,102.7,102.67,2.51380346]
[1770111002798,15.16860623,102.73,102.69,2.41380346]
[1770111003001,12.25584004,102.73,102.7,2.41380346]
[1770111003298,2.52115086,102.75,102.72,2.41380346]
[1770111003492,2.52115086,102.76,102.73,2.41380346]
[1770111003799,12.25263321,102.76,102.73,2.41380346]
[1770111004403,2.52115086,102.75,102.72,9.73501697]
[1770111004713,2.52115086,102.76,102.73,12.14805174]
[1770111004902,2.52115086,102.76,102.73,2.41380346]
[1770111005100,2.52115086,102.78,102.75,5.32656965]
[1770111005785,2.52115086,102.78,102.75,2.41380346]
[1770111006300,2.52115086,102.78,102.75,15.05873225]
[1770111006504,12.2507173,102.78,102.74,15.05941671]
[1770111006701,2.52115086,102.78,102.75,9.73228045]
[1770111007001,2.52115086,102.77,102.74,9.73299813]
[1770111008409,2.52115086,102.77,102.74,12.64576432]
[1770111008906,12.64248364,102.78,102.75,5.32656965]
[1770111008907,2.52115086,102.78,102.75,5.32656965]
[1770111009111,2.52115086,102.76,102.73,12.64655002]
[1770111009404,2.52115086,102.76,102.73,9.73378383]
[1770111009601,2.52115086,102.75,102.72,12.14862458]
[1770111010600,2.52115086,102.76,102.73,15.06060722]
[1770111011107,2.52115086,102.76,102.73,9.73403757]
[1770111012201,15.16573531,102.76,102.72,12.1487075]
[1770111012508,2.52115086,102.75,102.72,12.1487075]
[1770111013209,2.52115086,102.75,102.72,15.06147369]
[1770111014012,2.52115086,102.76,102.72,39.39947992]
[1770111014395,2.52115086,102.76,102.72,15.06147369]
[1770111014700,12.25284961,102.76,102.72,12.1487075]
[1770111014904,12.25284961,102.76,102.72,15.06147369]
[1770111015213,2.52115086,102.75,102.72,12.1487075]
[1770111015398,2.52115086,102.74,102.72,9.73490404]
[1770111016002,2.52115086,102.74,102.7,27.25369208]
[1770111016003,2.91276619,102.74,102.7,27.25369208]
[1770111016192,2.91276619,102.74,102.7,29.75050257]
[1770111016388,34.06023125,102.76,102.71,5.40957668]
[1770111016600,12.64446494,102.76,102.72,5.40957668]
[1770111016895,12.64446494,102.76,102.73,2.49681049]
[1770111017497,12.64446494,102.76,102.72,12.23194142]
[1770111017826,12.64446494,102.76,102.73,2.49681049]
[1770111018028,12.64446494,102.76,102.72,12.23194142]
[1770111018418,12.64725952,102.76,102.72,12.23194142]
[1770111018596,2.91556077,102.75,102.72,2.49681049]
[1770111019215,9.73267121,102.75,102.72,15.14747045]
[1770111019407,9.73193058,102.76,102.73,2.49681049]
[1770111019728,12.64749135,102.76,102.72,12.23190968]
[1770111020919,72.96483598,102.79,102.72,15.14747045]
[1770111021101,2.91556077,102.76,102.72,12.23190968]
[1770111021912,2.91556077,102.76,102.72,2.49681049]
[1770111022417,2.91556077,102.76,102.72,12.23196866]
[1770111022615,2.91556077,102.77,102.72,12.23196866]
[1770111022812,72.96483598,102.79,102.72,15.14752943]
[1770111023009,2.91556077,102.75,102.72,9.73515817]
[1770111023518,2.91556077,102.73,102.67,2.59681049]
[1770111023702,2.91556077,102.78,102.66,2.91556077]
[1770111023703,2.3096358,102.71,102.66,2.91556077]
[1770111023899,2.3096358,102.71,102.62,38.97848094]
[1770111024101,2.3096358,102.72,102.68,2.91556077]
[1770111024703,12.04484356,102.72,102.68,12.65393949]
[1770111024907,12.04484356,102.72,102.68,2.91556077]
[1770111025624,14.96040433,102.72,102.68,2.91556077]
[1770111025817,14.96040433,102.72,102.68,5.23439775]
[1770111027025,2.3096358,102.71,102.68,2.31883698]
[1770111028223,2.3096358,102.7,102.66,14.97518747]
[1770111028415,2.3096358,102.7,102.67,2.31883698]
[1770111028925,2.91556077,102.7,102.66,2.91556077]
[1770111029124,2.3096358,102.69,102.65,2.31883698]
[1770111029332,2.3096358,102.69,102.65,14.97572435]
[1770111030326,12.04776752,102.69,102.65,2.31883698]
[1770111030508,14.96332829,102.69,102.65,5.23439775]
[1770111030825,2.3096358,102.68,102.65,2.31883698]
[1770111031013,14.96280206,102.7,102.66,5.23439775]
[1770111031217,12.04724129,102.7,102.66,5.23439775]
[1770111031416,12.04724129,102.7,102.67,2.31883698]
[1770111031613,2.3096358,102.72,102.68,5.23439775]
[1770111031814,12.0433981,102.74,102.7,5.23439775]
[1770111032016,12.04201128,102.75,102.72,2.91556077]
[1770111032220,2.3096358,102.75,102.72,2.91556077]
[1770111032514,2.3096358,102.75,102.68,2.31883698]
[1770111032515,2.3096358,102.74,102.68,2.31883698]
[1770111032714,2.3096358,102.73,102.69,5.23439775]
[1770111032919,5.22519657,102.72,102.68,5.23439775]
[1770111033324,2.3096358,102.72,102.68,14.9728521]
[1770111033630,5.22519657,102.72,102.68,5.23439775]
[1770111034322,2.3096358,102.72,102.69,14.97234164]
[1770111034532,12.04402689,102.73,102.69,14.97234164]
[1770111034740,12.04402689,102.73,102.7,2.91556077]
[1770111035320,12.04334279,102.74,102.7,5.23439775]
[1770111036117,2.3096358,102.73,102.7,5.23439775]
[1770111036528,2.3096358,102.73,102.7,14.97125846]
[1770111037525,12.04412589,102.73,102.7,2.91556077]
[1770111038133,12.04412589,102.73,102.7,5.23439775]
[1770111038641,2.91556077,102.74,102.7,5.23439775]
[1770111038642,12.03765525,102.74,102.7,14.9714856]
[1770111039440,2.29656688,102.73,102.69,12.05635698]
[1770111039619,14.94584871,102.74,102.7,14.97147619]
[1770111039824,9.73372106,102.74,102.71,2.31883698]
[1770111040130,12.0294393,102.75,102.72,5.23439775]
[1770111040537,12.02037567,102.77,102.74,2.31883698]
[1770111040727,2.28928419,102.79,102.75,5.23439775]
[1770111040922,2.28928419,102.79,102.75,2.31883698]
[1770111041144,2.28208515,102.78,102.75,2.31883698]
[1770111042047,5.19052957,102.77,102.73,5.23439775]
[1770111042543,2.2749688,102.77,102.74,2.31883698]
[1770111042734,12.00590796,102.77,102.74,2.31883698]
[1770111042922,9.73093916,102.77,102.74,5.23439775]
[1770111043443,14.91347941,102.78,102.74,5.23439775]
[1770111043740,11.99791864,102.78,102.74,14.96761114]
[1770111044538,36.31301541,102.79,102.75,5.23439775]
[1770111044723,9.72857281,102.79,102.76,5.23439775]
[1770111045845,0.2,102.81,102.78,5.23439775]
[1770111046022,0.2,102.81,102.79,5.23439775]
[1770111046346,0.2,102.81,102.8,2.31883698]
[1770111046552,0.2,102.81,102.8,5.23439775]
[1770111046732,0.2,102.81,102.8,14.9620242]
[1770111047248,0.2,102.83,102.81,2.31883698]
[1770111048332,0.2,102.83,102.79,24.32113886]
[1770111048333,20.03329757,102.83,102.79,19.84566866]
[1770111048539,12.23457251,102.83,102.8,2.31883698]
[1770111048731,2.5096358,102.83,102.8,2.31883698]
[1770111048932,0.2,102.83,102.8,10.11756204]
[1770111049454,20.03326575,102.83,102.79,10.11756204]
[1770111049631,20.03326575,102.83,102.8,2.31883698]
[1770111050038,2.3096358,102.82,102.78,12.04788691]
[1770111050239,7.79872506,102.8,102.77,2.25210565]
[1770111050436,2.13072676,102.8,102.75,19.78268155]
[1770111050730,17.52729787,102.79,102.76,2.25210565]
[1770111050946,11.85883395,102.8,102.76,2.25210565]
[1770111051145,7.79872506,102.79,102.76,2.25210565]
[1770111051347,9.92945182,102.79,102.75,2.25210565]
[1770111051538,9.92945182,102.78,102.75,2.25210565]
[1770111051744,9.92945182,102.78,102.74,2.25210565]
[1770111052143,2.13072676,102.78,102.75,2.25210565]
[1770111052528,9.92945182,102.78,102.75,2.25210565]
[1770111052737,7.79872506,102.77,102.74,2.23457862]
[1770111053147,19.65949027,102.78,102.74,11.96785059]
[1770111053343,19.65949027,102.78,102.74,19.76657565]
[1770111053547,9.72898786,102.79,102.76,2.23457862]
[1770111053742,9.95831383,102.78,102.74,11.96736223]
[1770111053943,9.95831383,102.78,102.75,2.23457862]
[1770111054658,19.68872982,102.78,102.74,11.96736223]
[1770111055353,2.15958877,102.76,102.73,2.23457862]
[1770111055651,9.95831383,102.75,102.71,2.23457862]
[1770111056363,9.95831383,102.73,102.69,11.97221708]
[1770111056535,7.79872506,102.72,102.69,2.23457862]
[1770111056736,17.53441605,102.72,102.69,2.23457862]
[1770111057235,19.69400482,102.72,102.68,11.97308446]
[1770111057434,19.69400482,102.72,102.68,19.77180952]
[1770111057648,19.69400482,102.72,102.68,11.97308446]
[1770111059955,19.69400482,102.72,102.68,19.77180952]
[1770111060163,11.89527976,102.72,102.69,7.79872506]
[1770111060460,11.89421477,102.73,102.7,2.23457862]
[1770111060633,11.8932692,102.74,102.7,10.03330368]
[1770111060833,19.69199426,102.74,102.7,2.23457862]
[1770111061439,2.15958877,102.74,102.71,2.23457862]
[1770111061632,34.28758061,102.76,102.72,2.23457862]
[1770111062058,9.73284846,102.75,102.72,2.23457862]
[1770111062853,9.73284846,102.75,102.67,2.23457862]
[1770111062854,2.15958877,102.72,102.67,2.23457862]
[1770111063049,34.0637487,102.75,102.67,2.23457862]
[1770111063050,9.95831383,102.71,102.67,2.23457862]
[1770111063456,9.95831383,102.7,102.65,19.77469116]
[1770111063662,7.79872506,102.69,102.65,11.9759661]
[1770111063848,7.79872506,102.69,102.65,2.23457862]
[1770111064250,9.73899493,102.68,102.65,2.23457862]
[1770111064450,17.53727213,102.69,102.66,2.23457862]
[1770111064838,9.73854707,102.69,102.66,2.23457862]
[1770111065467,26.49952574,102.72,102.68,2.23457862]
[1770111065660,2.15958877,102.71,102.67,2.23457862]
[1770111065838,2.15958877,102.71,102.67,10.03330368]
[1770111066043,11.89573909,102.71,102.67,2.23457862]
[1770111066242,19.69446415,102.71,102.67,10.03330368]
[1770111066456,44.03483996,102.71,102.67,2.23457862]
[1770111066866,44.03483996,102.71,102.67,10.03330368]
[1770111067063,19.69446415,102.71,102.67,19.77303246]
[1770111067370,19.69446415,102.71,102.68,2.23457862]
[1770111067747,19.69446415,102.71,102.67,7.79872506]
[1770111067940,44.03483996,102.71,102.67,2.23457862]
[1770111068140,11.89715135,102.7,102.67,2.23457862]
[1770111068376,9.73756258,102.7,102.67,2.23457862]
[1770111069069,9.73650588,102.71,102.68,2.23457862]
[1770111069285,9.95831383,102.72,102.68,2.23457862]
[1770111069286,11.89520468,102.72,102.69,2.23457862]
[1770111069565,11.89520468,102.72,102.67,9.73984321]
[1770111069566,2.15958877,102.74,102.71,7.79872506]
[1770111069784,9.73315661,102.75,102.72,10.03330368]
[1770111070168,34.28885519,102.76,102.73,10.03330368]
[1770111070169,9.73184977,102.76,102.73,10.03330368]
[1770111070348,9.72857281,102.79,102.75,10.03330368]
[1770111070552,2.15958877,102.8,102.76,10.03330368]
[1770111070949,11.88773774,102.8,102.76,10.03330368]
[1770111071577,11.88773774,102.8,102.77,7.79872506]
[1770111072364,9.7273648,102.81,102.78,10.03330368]
[1770111072560,11.88570751,102.82,102.78,10.03330368]
[1770111073580,11.88570751,102.82,102.79,7.79872506]
[1770111073975,11.88570751,102.82,102.78,10.03330368]
[1770111074480,9.92520025,102.83,102.79,10.03330368]
[1770111074679,9.92520025,102.83,102.8,10.03330368]
[1770111074875,9.92520025,102.83,102.79,2.23457862]
[1770111074876,19.88351408,102.83,102.79,2.23457862]
[1770111075481,17.72392531,102.83,102.8,2.23457862]
[1770111076394,9.92520025,102.83,102.8,2.23457862]
[1770111078388,9.92520025,102.83,102.81,10.03139133]
[1770111078389,0.2,102.83,102.81,10.03139133]
[1770111078764,0.2,102.83,102.81,2.23457862]
[1770111079174,9.92480577,102.83,102.81,2.23457862]
[1770111079374,0.2,102.83,102.81,2.23457862]
[1770111079985,0.2,102.83,102.81,10.03139133]
[1770111080188,34.46396762,102.85,102.82,10.03139133]
[1770111080189,0.2,102.85,102.82,10.03139133]
[1770111080368,0.2,102.85,102.83,7.79681271]
[1770111080566,0.2,102.85,102.83,10.04292287]
[1770111080887,0.2,102.85,102.83,2.24611016]
[1770111081070,9.92295641,102.85,102.82,10.04292287]
[1770111081264,19.86434893,102.85,102.81,10.04292287]